[Event "Betsys MČR v online bleskovém šachu 2021"]
[Site "Chess.com"]
[Date "2021.04.17"]
[Round "7"]
[White "tudlenudle"]
[Black "petrgnojek"]
[Result "0-1"]
[WhiteElo "1940"]
[BlackElo "2263"]
[TimeControl "180+1"]
[EndTime "10:09:29 PDT"]
[Termination "Uživatel petrgnojek zvítězil po vzdání soupeře"]

1. e4 {[%clk 0:03:00.9]} 1... c5 {[%clk 0:02:58.8]} 2. Nf3 {[%clk 0:03:01.2]}
2... e6 {[%clk 0:02:59.2]} 3. d4 {[%clk 0:03:01.4]} 3... cxd4 {[%clk 0:02:59]}
4. Nxd4 {[%clk 0:03:02.3]} 4... Nf6 {[%clk 0:02:59.1]} 5. Nc3 {[%clk 0:03:02.6]}
5... d6 {[%clk 0:02:59.2]} 6. g3 {[%clk 0:03:01.6]} 6... Be7 {[%clk 0:02:57.9]}
7. Bg2 {[%clk 0:03:01.9]} 7... O-O {[%clk 0:02:58]} 8. O-O {[%clk 0:03:01.7]}
8... Nc6 {[%clk 0:02:57.5]} 9. a4 {[%clk 0:02:53.3]} 9... Bd7 {[%clk 0:02:53.2]}
10. Nb3 {[%clk 0:02:52.3]} 10... Rc8 {[%clk 0:02:49.6]} 11. f4 {[%clk
0:02:47.7]} 11... Na5 {[%clk 0:02:43]} 12. g4 {[%clk 0:02:46.2]} 12... Nxb3
{[%clk 0:02:40.6]} 13. cxb3 {[%clk 0:02:45.4]} 13... Bc6 {[%clk 0:02:40.7]} 14.
g5 {[%clk 0:02:45.7]} 14... Nd7 {[%clk 0:02:38.6]} 15. Rf3 {[%clk 0:02:36.2]}
15... f5 {[%clk 0:02:30.1]} 16. Rh3 {[%clk 0:02:33.2]} 16... g6 {[%clk
0:02:29.3]} 17. Be3 {[%clk 0:02:22.2]} 17... a6 {[%clk 0:02:22.4]} 18. Qd4
{[%clk 0:01:56.1]} 18... Rf7 {[%clk 0:02:04.4]} 19. Re1 {[%clk 0:01:53.1]} 19...
Nf8 {[%clk 0:02:02.5]} 20. Bd2 {[%clk 0:01:44]} 20... fxe4 {[%clk 0:01:51.6]}
21. Nxe4 {[%clk 0:01:38]} 21... Bxe4 {[%clk 0:01:50.9]} 22. Bxe4 {[%clk
0:01:28.5]} 22... d5 {[%clk 0:01:50.2]} 23. Bd3 {[%clk 0:01:13.6]} 23... Bc5
{[%clk 0:01:49.1]} 24. Bc3 {[%clk 0:01:01.4]} 24... Bxd4+ {[%clk 0:01:47.9]} 25.
Bxd4 {[%clk 0:01:02.3]} 25... Rxf4 {[%clk 0:01:44.8]} 26. Bf6 {[%clk 0:00:57]}
26... Rxf6 {[%clk 0:01:42.8]} 27. gxf6 {[%clk 0:00:57.9]} 27... Qxf6 {[%clk
0:01:43]} 28. Rhe3 {[%clk 0:00:56.8]} 28... Qxb2 {[%clk 0:01:41.1]} 0-1

[Event "Betsys MČR v online bleskovém šachu 2021"]
[Site "Chess.com"]
[Date "2021.04.17"]
[Round "7"]
[White "Petr_Zacek"]
[Black "vadoto"]
[Result "1-0"]
[WhiteElo "1754"]
[BlackElo "1345"]
[TimeControl "180+1"]
[EndTime "10:09:38 PDT"]
[Termination "Uživatel Petr_Zacek zvítězil matem"]

1. d4 {[%clk 0:03:00.9]} 1... d5 {[%clk 0:01:40.2]} 2. Nf3 {[%clk 0:02:58.3]}
2... Nc6 {[%clk 0:01:39]} 3. e3 {[%clk 0:02:57.9]} 3... Nf6 {[%clk 0:01:31]} 4.
c3 {[%clk 0:02:55.6]} 4... Bg4 {[%clk 0:01:28.8]} 5. Bd3 {[%clk 0:02:54.8]} 5...
e6 {[%clk 0:01:26.5]} 6. O-O {[%clk 0:02:54.4]} 6... Bd6 {[%clk 0:01:24.2]} 7.
Nbd2 {[%clk 0:02:54.2]} 7... Qe7 {[%clk 0:01:22.4]} 8. e4 {[%clk 0:02:52.1]}
8... O-O-O {[%clk 0:01:16.1]} 9. e5 {[%clk 0:02:51.2]} 9... Nh5 {[%clk 0:00:52]}
10. exd6 {[%clk 0:02:49.4]} 10... Qxd6 {[%clk 0:00:52.1]} 11. h3 {[%clk
0:02:41.7]} 11... Bxf3 {[%clk 0:00:50.7]} 12. Nxf3 {[%clk 0:02:40.4]} 12... f5
{[%clk 0:00:44.9]} 13. Ne5 {[%clk 0:02:36]} 13... Nxe5 {[%clk 0:00:42.6]} 14.
dxe5 {[%clk 0:02:35.6]} 14... Qxe5 {[%clk 0:00:42.7]} 15. Qxh5 {[%clk
0:02:34.6]} 15... g6 {[%clk 0:00:38.4]} 16. Qf3 {[%clk 0:02:32.8]} 16... Rdf8
{[%clk 0:00:31.2]} 17. Bf4 {[%clk 0:02:30.3]} 17... Qf6 {[%clk 0:00:29.8]} 18.
Rfe1 {[%clk 0:02:26.4]} 18... Re8 {[%clk 0:00:28.6]} 19. Be5 {[%clk 0:02:25.8]}
19... Qf8 {[%clk 0:00:24.8]} 20. Bxh8 {[%clk 0:02:25.2]} 20... Qxh8 {[%clk
0:00:25.2]} 21. c4 {[%clk 0:02:19.7]} 21... dxc4 {[%clk 0:00:24.1]} 22. Bxc4
{[%clk 0:02:18.4]} 22... Qxb2 {[%clk 0:00:23.5]} 23. Rab1 {[%clk 0:02:16.5]}
23... Qa3 {[%clk 0:00:20.4]} 24. Qxb7+ {[%clk 0:02:15.9]} 24... Kd8 {[%clk
0:00:20]} 25. Rbd1+ {[%clk 0:02:10.3]} 25... Ke7 {[%clk 0:00:19]} 26. Rxe6+
{[%clk 0:02:08.7]} 26... Kf8 {[%clk 0:00:18]} 27. Rf6+ {[%clk 0:02:05.3]} 27...
Ke7 {[%clk 0:00:13]} 28. Rf7# {[%clk 0:02:02.9]} 1-0

[Event "Betsys MČR v online bleskovém šachu 2021"]
[Site "Chess.com"]
[Date "2021.04.17"]
[Round "7"]
[White "Lisak007"]
[Black "CrisBenton4"]
[Result "1-0"]
[WhiteElo "1838"]
[BlackElo "1451"]
[TimeControl "180+1"]
[EndTime "10:09:39 PDT"]
[Termination "Uživatel Lisak007 zvítězil matem"]

1. e4 {[%clk 0:02:59.5]} 1... e5 {[%clk 0:02:52.6]} 2. Nc3 {[%clk 0:02:58.8]}
2... Nc6 {[%clk 0:02:50.8]} 3. Bc4 {[%clk 0:02:58.4]} 3... Bc5 {[%clk
0:02:50.2]} 4. d3 {[%clk 0:02:58.4]} 4... d6 {[%clk 0:02:49.7]} 5. Nge2 {[%clk
0:02:55.1]} 5... Nf6 {[%clk 0:02:48.7]} 6. O-O {[%clk 0:02:55.1]} 6... h6 {[%clk
0:02:48.5]} 7. Kh1 {[%clk 0:02:55.4]} 7... O-O {[%clk 0:02:48.2]} 8. f4 {[%clk
0:02:55.5]} 8... exf4 {[%clk 0:02:47.2]} 9. Nxf4 {[%clk 0:02:55]} 9... Bg4
{[%clk 0:02:45.2]} 10. Qe1 {[%clk 0:02:45.6]} 10... Nd4 {[%clk 0:02:40.3]} 11.
Bb3 {[%clk 0:02:45.6]} 11... Nxb3 {[%clk 0:02:38.1]} 12. axb3 {[%clk 0:02:45.7]}
12... a6 {[%clk 0:02:37.9]} 13. Nfd5 {[%clk 0:02:42.9]} 13... Nxd5 {[%clk
0:02:34.2]} 14. Nxd5 {[%clk 0:02:42.6]} 14... Be6 {[%clk 0:02:34.7]} 15. Nf4
{[%clk 0:02:41.1]} 15... Qe8 {[%clk 0:02:17.2]} 16. Qg3 {[%clk 0:02:39.5]} 16...
Bd4 {[%clk 0:02:02.1]} 17. c3 {[%clk 0:02:36.2]} 17... Bf6 {[%clk 0:02:00.2]}
18. Nh5 {[%clk 0:02:36]} 18... Be5 {[%clk 0:01:36.9]} 19. Qh4 {[%clk 0:02:08.3]}
19... c5 {[%clk 0:01:14.2]} 20. Nxg7 {[%clk 0:01:57.2]} 20... Bxg7 {[%clk
0:01:04.7]} 21. Bxh6 {[%clk 0:01:56.7]} 21... Bxh6 {[%clk 0:00:49.8]} 22. Qxh6
{[%clk 0:01:53.4]} 22... f6 {[%clk 0:00:50.3]} 23. Rf3 {[%clk 0:01:44.8]} 23...
Kf7 {[%clk 0:00:24.7]} 24. Qh7# {[%clk 0:01:41.9]} 1-0

[Event "Betsys MČR v online bleskovém šachu 2021"]
[Site "Chess.com"]
[Date "2021.04.17"]
[Round "7"]
[White "clarissamcclellan"]
[Black "pepca"]
[Result "1-0"]
[WhiteElo "1833"]
[BlackElo "1526"]
[TimeControl "180+1"]
[EndTime "10:09:41 PDT"]
[Termination "Uživatel clarissamcclellan zvítězil matem"]

1. d4 {[%clk 0:02:58.9]} 1... d5 {[%clk 0:02:59.4]} 2. c4 {[%clk 0:02:58.9]}
2... e6 {[%clk 0:02:58.7]} 3. Nf3 {[%clk 0:02:58.9]} 3... Nf6 {[%clk 0:02:57.3]}
4. g3 {[%clk 0:02:59.2]} 4... c5 {[%clk 0:02:56.2]} 5. Bg2 {[%clk 0:02:59]} 5...
Nc6 {[%clk 0:02:54.9]} 6. O-O {[%clk 0:02:58.7]} 6... dxc4 {[%clk 0:02:49.5]} 7.
dxc5 {[%clk 0:02:56.7]} 7... Bxc5 {[%clk 0:02:48.6]} 8. Qxd8+ {[%clk 0:02:54.8]}
8... Nxd8 {[%clk 0:02:46.4]} 9. Ne5 {[%clk 0:02:53.9]} 9... O-O {[%clk 0:02:37]}
10. Nd2 {[%clk 0:02:53.4]} 10... Rb8 {[%clk 0:02:28.1]} 11. Ndxc4 {[%clk
0:02:49.1]} 11... b5 {[%clk 0:02:26.1]} 12. Na5 {[%clk 0:02:47.8]} 12... Bd4
{[%clk 0:02:15.7]} 13. Nec6 {[%clk 0:02:43.8]} 13... Nxc6 {[%clk 0:02:04.7]} 14.
Nxc6 {[%clk 0:02:43]} 14... Rb6 {[%clk 0:02:02.7]} 15. Nxd4 {[%clk 0:02:42.5]}
15... Rd8 {[%clk 0:02:00]} 16. Be3 {[%clk 0:02:41.3]} 16... e5 {[%clk
0:01:54.1]} 17. Nc6 {[%clk 0:02:40.5]} 17... Re8 {[%clk 0:01:49.9]} 18. Rfd1
{[%clk 0:02:37.3]} 18... Ra6 {[%clk 0:01:40.2]} 19. Rd2 {[%clk 0:02:30.4]} 19...
Ng4 {[%clk 0:01:37.6]} 20. Rad1 {[%clk 0:02:24]} 20... Nxe3 {[%clk 0:01:36.7]}
21. fxe3 {[%clk 0:02:24.9]} 21... Bb7 {[%clk 0:01:33.9]} 22. Rd8 {[%clk
0:02:20.3]} 22... Bxc6 {[%clk 0:01:33.1]} 23. Bxc6 {[%clk 0:02:18.1]} 23... Rf8
{[%clk 0:01:29.7]} 24. Bxb5 {[%clk 0:02:14.9]} 24... Rxa2 {[%clk 0:01:28.5]} 25.
Rxf8+ {[%clk 0:02:13.6]} 25... Kxf8 {[%clk 0:01:27.8]} 26. Rd2 {[%clk
0:02:13.6]} 26... Ke7 {[%clk 0:01:25.1]} 27. Kf2 {[%clk 0:02:09.3]} 27... e4
{[%clk 0:01:21.7]} 28. Bc6 {[%clk 0:02:07.7]} 28... f5 {[%clk 0:01:19.8]} 29.
Rd7+ {[%clk 0:02:04]} 29... Kf6 {[%clk 0:01:18.3]} 30. Rb7 {[%clk 0:02:01.5]}
30... a5 {[%clk 0:01:15.5]} 31. Rb6 {[%clk 0:01:59.5]} 31... Kg5 {[%clk
0:01:12]} 32. Rb5 {[%clk 0:01:54.8]} 32... g6 {[%clk 0:01:09.9]} 33. Rb7 {[%clk
0:01:45.2]} 33... h5 {[%clk 0:01:08.1]} 34. Rb6 {[%clk 0:01:40.9]} 34... a4
{[%clk 0:01:00.9]} 35. Be8 {[%clk 0:01:40.1]} 35... a3 {[%clk 0:00:55.8]} 36.
Rxg6# {[%clk 0:01:37.9]} 1-0

[Event "Betsys MČR v online bleskovém šachu 2021"]
[Site "Chess.com"]
[Date "2021.04.17"]
[Round "7"]
[White "Rubinus"]
[Black "Maldaj"]
[Result "0-1"]
[WhiteElo "2174"]
[BlackElo "2419"]
[TimeControl "180+1"]
[EndTime "10:09:51 PDT"]
[Termination "Uživatel Maldaj zvítězil po vzdání soupeře"]

1. e4 {[%clk 0:03:00.4]} 1... c5 {[%clk 0:02:58.7]} 2. Nf3 {[%clk 0:02:59.9]}
2... d6 {[%clk 0:02:58.5]} 3. d4 {[%clk 0:02:59.8]} 3... cxd4 {[%clk 0:02:59.4]}
4. Nxd4 {[%clk 0:02:59.8]} 4... Nf6 {[%clk 0:02:59.9]} 5. Nc3 {[%clk 0:03:00.1]}
5... a6 {[%clk 0:03:00.4]} 6. Bg5 {[%clk 0:02:59.7]} 6... Nbd7 {[%clk
0:02:58.5]} 7. Qd2 {[%clk 0:02:52.8]} 7... e6 {[%clk 0:02:55.3]} 8. O-O-O {[%clk
0:02:48.7]} 8... Be7 {[%clk 0:02:55.4]} 9. f4 {[%clk 0:02:47.2]} 9... O-O {[%clk
0:02:52.3]} 10. Be2 {[%clk 0:02:44.7]} 10... Qc7 {[%clk 0:02:50.2]} 11. g4
{[%clk 0:02:41.8]} 11... b5 {[%clk 0:02:49.4]} 12. Bxf6 {[%clk 0:02:39]} 12...
Nxf6 {[%clk 0:02:49.1]} 13. g5 {[%clk 0:02:38.6]} 13... b4 {[%clk 0:02:46.4]}
14. gxf6 {[%clk 0:02:29.7]} 14... bxc3 {[%clk 0:02:46.1]} 15. Qxc3 {[%clk
0:02:29.1]} 15... Qxc3 {[%clk 0:02:45.7]} 16. bxc3 {[%clk 0:02:23.1]} 16... Bxf6
{[%clk 0:02:44]} 17. Rhg1 {[%clk 0:02:12.9]} 17... Bb7 {[%clk 0:02:42.7]} 18.
Bd3 {[%clk 0:02:07.1]} 18... Rac8 {[%clk 0:02:39.9]} 19. Kd2 {[%clk 0:02:05.9]}
19... Rc5 {[%clk 0:02:35.9]} 20. Rb1 {[%clk 0:02:04.5]} 20... Ba8 {[%clk
0:02:29.9]} 21. Rb6 {[%clk 0:02:02.8]} 21... Rxc3 {[%clk 0:02:18.3]} 22. Rxd6
{[%clk 0:01:49.3]} 22... Ra3 {[%clk 0:02:07.2]} 23. e5 {[%clk 0:01:22.2]} 23...
Be7 {[%clk 0:02:06.8]} 24. Rd7 {[%clk 0:01:19.9]} 24... Bc5 {[%clk 0:02:06.4]}
25. Ke3 {[%clk 0:01:17.7]} 25... Bc6 {[%clk 0:01:54.9]} 26. Rc7 {[%clk
0:01:16.1]} 26... Rd8 {[%clk 0:01:52.5]} 27. Rxc6 {[%clk 0:01:01.5]} 27... Bxd4+
{[%clk 0:01:52.2]} 28. Ke4 {[%clk 0:01:00.8]} 28... Bxg1 {[%clk 0:01:51.3]} 29.
Rxa6 {[%clk 0:00:44.1]} 29... Rd4+ {[%clk 0:01:47.9]} 30. Kf3 {[%clk 0:00:41]}
30... Rdxd3+ {[%clk 0:01:47.8]} 31. Ke4 {[%clk 0:00:31.6]} 31... Rxa6 {[%clk
0:01:48.7]} 32. cxd3 {[%clk 0:00:31]} 32... Rxa2 {[%clk 0:01:47.8]} 0-1

[Event "Betsys MČR v online bleskovém šachu 2021"]
[Site "Chess.com"]
[Date "2021.04.17"]
[Round "7"]
[White "zarathutra"]
[Black "Svisthorsky"]
[Result "1-0"]
[WhiteElo "1812"]
[BlackElo "1459"]
[TimeControl "180+1"]
[EndTime "10:09:51 PDT"]
[Termination "Uživatel zarathutra zvítězil na čas"]

1. d4 {[%clk 0:03:00.9]} 1... d5 {[%clk 0:02:59.4]} 2. c4 {[%clk 0:03:01.1]}
2... Nf6 {[%clk 0:02:57.6]} 3. cxd5 {[%clk 0:03:00.4]} 3... Nxd5 {[%clk
0:02:54.4]} 4. e4 {[%clk 0:03:00]} 4... Nf6 {[%clk 0:02:50.4]} 5. Nc3 {[%clk
0:02:59.1]} 5... e5 {[%clk 0:02:45.2]} 6. d5 {[%clk 0:02:36.8]} 6... Bb4 {[%clk
0:02:41.4]} 7. Qa4+ {[%clk 0:02:14.6]} 7... Bd7 {[%clk 0:02:15.3]} 8. Qxb4
{[%clk 0:02:13.9]} 8... c6 {[%clk 0:02:09.7]} 9. Qxb7 {[%clk 0:02:06.3]} 9...
cxd5 {[%clk 0:01:51.7]} 10. Qxa8 {[%clk 0:02:05.3]} 10... O-O {[%clk 0:01:45.8]}
11. Qxa7 {[%clk 0:02:01.7]} 11... dxe4 {[%clk 0:01:42.3]} 12. Be3 {[%clk
0:01:59.3]} 12... Nc6 {[%clk 0:01:40.4]} 13. Qb6 {[%clk 0:01:50.6]} 13... Qe7
{[%clk 0:01:24.9]} 14. Bc5 {[%clk 0:01:36]} 14... Qe6 {[%clk 0:01:24.4]} 15.
Bxf8 {[%clk 0:01:33.4]} 1-0

[Event "Betsys MČR v online bleskovém šachu 2021"]
[Site "Chess.com"]
[Date "2021.04.17"]
[Round "7"]
[White "zaciname"]
[Black "dzerenyss"]
[Result "0-1"]
[WhiteElo "721"]
[BlackElo "1129"]
[TimeControl "180+1"]
[EndTime "10:09:53 PDT"]
[Termination "Uživatel dzerenyss zvítězil matem"]

1. e4 {[%clk 0:03:00.9]} 1... c5 {[%clk 0:02:57.9]} 2. Nf3 {[%clk 0:03:00.8]}
2... d6 {[%clk 0:02:56.8]} 3. d4 {[%clk 0:03:01.2]} 3... cxd4 {[%clk 0:02:56.2]}
4. Nxd4 {[%clk 0:03:01.3]} 4... Nf6 {[%clk 0:02:53.4]} 5. Nc3 {[%clk 0:03:01.4]}
5... e5 {[%clk 0:02:43.7]} 6. Nf3 {[%clk 0:02:58.1]} 6... Bg4 {[%clk 0:02:37.1]}
7. Be2 {[%clk 0:02:55.7]} 7... Nc6 {[%clk 0:02:19.7]} 8. Ng5 {[%clk 0:02:51.9]}
8... Bxe2 {[%clk 0:02:11.7]} 9. Qxe2 {[%clk 0:02:51.5]} 9... h6 {[%clk
0:02:07.6]} 10. Nf3 {[%clk 0:02:49.9]} 10... d5 {[%clk 0:02:04.9]} 11. a3 {[%clk
0:02:48]} 11... Bc5 {[%clk 0:01:53.1]} 12. O-O {[%clk 0:02:42]} 12... O-O {[%clk
0:01:52.2]} 13. b4 {[%clk 0:02:40.3]} 13... Bb6 {[%clk 0:01:50.7]} 14. Bb2
{[%clk 0:02:28.1]} 14... Qd6 {[%clk 0:01:42.1]} 15. Rad1 {[%clk 0:02:28]} 15...
Rad8 {[%clk 0:01:40]} 16. Nb5 {[%clk 0:02:23]} 16... Qe6 {[%clk 0:01:32.6]} 17.
Rd2 {[%clk 0:02:18.2]} 17... dxe4 {[%clk 0:01:16.2]} 18. Ne1 {[%clk 0:02:09.7]}
18... Rxd2 {[%clk 0:01:12.6]} 19. Qxd2 {[%clk 0:02:05.8]} 19... Rd8 {[%clk
0:01:10.4]} 20. Qe2 {[%clk 0:01:57.2]} 20... Nd4 {[%clk 0:01:02.5]} 21. Qe3
{[%clk 0:01:28.2]} 21... Nxc2 {[%clk 0:00:57.3]} 22. Nxc2 {[%clk 0:01:26.4]}
22... Bxe3 {[%clk 0:00:54.1]} 23. fxe3 {[%clk 0:01:25.1]} 23... Qg4 {[%clk
0:00:49.7]} 24. Nc3 {[%clk 0:01:20.4]} 24... Rd2 {[%clk 0:00:47]} 25. Rc1 {[%clk
0:01:11.2]} 25... Qxg2# {[%clk 0:00:44.7]} 0-1

[Event "Betsys MČR v online bleskovém šachu 2021"]
[Site "Chess.com"]
[Date "2021.04.17"]
[Round "7"]
[White "5265"]
[Black "kaprasov"]
[Result "1-0"]
[WhiteElo "1638"]
[BlackElo "1862"]
[TimeControl "180+1"]
[EndTime "10:09:54 PDT"]
[Termination "Uživatel 5265 zvítězil na čas"]

1. e4 {[%clk 0:03:00.9]} 1... c5 {[%clk 0:02:56.7]} 2. c3 {[%clk 0:03:00.8]}
2... d6 {[%clk 0:02:56.2]} 3. d4 {[%clk 0:03:00.1]} 3... Nf6 {[%clk 0:02:53.8]}
4. Bd3 {[%clk 0:02:55.3]} 4... g6 {[%clk 0:02:53.2]} 5. Nf3 {[%clk 0:02:53.8]}
5... Bg7 {[%clk 0:02:53.4]} 6. dxc5 {[%clk 0:02:51.6]} 6... dxc5 {[%clk
0:02:53.2]} 7. O-O {[%clk 0:02:51.3]} 7... O-O {[%clk 0:02:52.9]} 8. Be3 {[%clk
0:02:46.8]} 8... b6 {[%clk 0:02:52.6]} 9. e5 {[%clk 0:02:44.6]} 9... Nd5 {[%clk
0:02:49]} 10. Be4 {[%clk 0:02:42.9]} 10... Bb7 {[%clk 0:02:49.3]} 11. Bg5 {[%clk
0:02:29.6]} 11... c4 {[%clk 0:01:44.3]} 12. b3 {[%clk 0:02:17.4]} 12... cxb3
{[%clk 0:01:38.7]} 13. axb3 {[%clk 0:02:17.1]} 13... h6 {[%clk 0:01:30.9]} 14.
Bh4 {[%clk 0:02:15.7]} 14... g5 {[%clk 0:01:30.7]} 15. Bg3 {[%clk 0:02:15.6]}
15... e6 {[%clk 0:01:17.7]} 16. c4 {[%clk 0:02:14.2]} 16... Ba6 {[%clk
0:00:55.4]} 17. Re1 {[%clk 0:02:08.5]} 17... Qc8 {[%clk 0:00:18]} 18. cxd5
{[%clk 0:02:02.7]} 18... exd5 {[%clk 0:00:14.3]} 19. Qxd5 {[%clk 0:01:57.6]}
19... Nd7 {[%clk 0:00:05.7]} 20. Na3 {[%clk 0:01:50]} 20... Rb8 {[%clk
0:00:03.1]} 21. Rac1 {[%clk 0:01:49.1]} 21... Qd8 {[%clk 0:00:02]} 22. Red1
{[%clk 0:01:45.7]} 1-0

[Event "Betsys MČR v online bleskovém šachu 2021"]
[Site "Chess.com"]
[Date "2021.04.17"]
[Round "7"]
[White "VojtechPlat"]
[Black "vit_rosenbaum"]
[Result "0-1"]
[WhiteElo "2845"]
[BlackElo "2264"]
[TimeControl "180+1"]
[EndTime "10:09:59 PDT"]
[Termination "Uživatel vit_rosenbaum zvítězil po vzdání soupeře"]

1. e4 {[%clk 0:02:55.8]} 1... e6 {[%clk 0:03:00.1]} 2. d4 {[%clk 0:02:51.5]}
2... d5 {[%clk 0:03:00.5]} 3. Nd2 {[%clk 0:02:50.4]} 3... Nf6 {[%clk 0:03:00.1]}
4. e5 {[%clk 0:02:49.7]} 4... Nfd7 {[%clk 0:03:00.3]} 5. Bd3 {[%clk 0:02:49.5]}
5... c5 {[%clk 0:03:00.7]} 6. c3 {[%clk 0:02:49.4]} 6... Nc6 {[%clk 0:03:01.3]}
7. Ne2 {[%clk 0:02:48]} 7... cxd4 {[%clk 0:03:01.8]} 8. cxd4 {[%clk 0:02:47.5]}
8... f6 {[%clk 0:03:02.5]} 9. Nf4 {[%clk 0:02:47]} 9... Nxd4 {[%clk 0:03:02.4]}
10. Qh5+ {[%clk 0:02:46.1]} 10... Ke7 {[%clk 0:03:00]} 11. Ng6+ {[%clk
0:02:35.8]} 11... hxg6 {[%clk 0:02:59.6]} 12. exf6+ {[%clk 0:02:35.5]} 12...
gxf6 {[%clk 0:02:56.5]} 13. Qxh8 {[%clk 0:02:34.5]} 13... Ne5 {[%clk 0:02:56.4]}
14. Bxg6 {[%clk 0:02:23.7]} 14... Nxg6 {[%clk 0:02:32.2]} 15. Qh7+ {[%clk
0:02:22.8]} 15... Kd6 {[%clk 0:02:31.1]} 16. Qxg6 {[%clk 0:02:22.2]} 16... Be7
{[%clk 0:02:20.5]} 17. Qd3 {[%clk 0:02:19.2]} 17... e5 {[%clk 0:02:17.2]} 18.
Nb3 {[%clk 0:02:18.7]} 18... Bf5 {[%clk 0:02:11.6]} 19. Qd2 {[%clk 0:01:57]}
19... Nc2+ {[%clk 0:02:08.8]} 20. Kf1 {[%clk 0:01:56.4]} 20... Nxa1 {[%clk
0:02:08.6]} 21. Nxa1 {[%clk 0:01:56]} 21... Qb6 {[%clk 0:01:58.9]} 22. b3 {[%clk
0:01:48.3]} 22... Ke6 {[%clk 0:01:53.5]} 23. h4 {[%clk 0:01:43.4]} 23... Bb4
{[%clk 0:01:48.3]} 24. Qe2 {[%clk 0:01:39.7]} 24... Rc8 {[%clk 0:01:43.7]} 25.
Bb2 {[%clk 0:01:38.2]} 25... Bc3 {[%clk 0:01:39.9]} 26. g4 {[%clk 0:01:31.4]}
26... Be4 {[%clk 0:01:32.4]} 27. Rh3 {[%clk 0:01:24.3]} 27... Bxb2 {[%clk
0:01:24.4]} 28. Qxb2 {[%clk 0:01:23]} 28... Qc5 {[%clk 0:01:04.7]} 29. Re3
{[%clk 0:01:06.9]} 29... Qc1+ {[%clk 0:01:00.4]} 30. Qxc1 {[%clk 0:01:06.3]}
30... Rxc1+ {[%clk 0:01:00.3]} 31. Re1 {[%clk 0:01:06.1]} 31... Bd3+ {[%clk
0:01:00.6]} 0-1

[Event "Betsys MČR v online bleskovém šachu 2021"]
[Site "Chess.com"]
[Date "2021.04.17"]
[Round "7"]
[White "kubaches123"]
[Black "karimaster100"]
[Result "1-0"]
[WhiteElo "2086"]
[BlackElo "2239"]
[TimeControl "180+1"]
[EndTime "10:10:02 PDT"]
[Termination "Uživatel kubaches123 zvítězil po vzdání soupeře"]

1. d4 {[%clk 0:03:00.9]} 1... Nf6 {[%clk 0:02:59.4]} 2. c4 {[%clk 0:03:00.6]}
2... g6 {[%clk 0:02:59.4]} 3. Nc3 {[%clk 0:03:00.1]} 3... d5 {[%clk 0:02:58.6]}
4. cxd5 {[%clk 0:03:00.2]} 4... Nxd5 {[%clk 0:02:59.2]} 5. e4 {[%clk 0:03:00.9]}
5... Nxc3 {[%clk 0:02:59.4]} 6. bxc3 {[%clk 0:03:01.8]} 6... Bg7 {[%clk
0:02:59.7]} 7. Nf3 {[%clk 0:03:02.4]} 7... c5 {[%clk 0:02:59.5]} 8. Rb1 {[%clk
0:03:02.9]} 8... O-O {[%clk 0:02:53.4]} 9. Be2 {[%clk 0:03:02.8]} 9... b6 {[%clk
0:02:49.9]} 10. O-O {[%clk 0:03:01.7]} 10... Ba6 {[%clk 0:02:46]} 11. Bxa6
{[%clk 0:02:53.4]} 11... Nxa6 {[%clk 0:02:45.9]} 12. Qe2 {[%clk 0:02:52.3]}
12... Qc8 {[%clk 0:02:44]} 13. Bf4 {[%clk 0:02:49.3]} 13... Rd8 {[%clk 0:02:37]}
14. Rfd1 {[%clk 0:02:32.2]} 14... Qb7 {[%clk 0:02:13.3]} 15. Rbc1 {[%clk
0:02:18.3]} 15... cxd4 {[%clk 0:02:11.1]} 16. cxd4 {[%clk 0:02:19.2]} 16... Rac8
{[%clk 0:02:10.8]} 17. d5 {[%clk 0:01:40.5]} 17... Rxc1 {[%clk 0:02:05.5]} 18.
Rxc1 {[%clk 0:01:39.6]} 18... Nc5 {[%clk 0:02:02.6]} 19. Be5 {[%clk 0:01:38.8]}
19... e6 {[%clk 0:01:46.1]} 20. Bxg7 {[%clk 0:01:34.6]} 20... Kxg7 {[%clk
0:01:45.7]} 21. Qb2+ {[%clk 0:01:34.7]} 21... Kg8 {[%clk 0:01:43.3]} 22. Rxc5
{[%clk 0:01:33.1]} 22... exd5 {[%clk 0:01:34.6]} 23. Rxd5 {[%clk 0:01:31.7]}
23... Rxd5 {[%clk 0:01:34.2]} 24. exd5 {[%clk 0:01:32.6]} 24... Qxd5 {[%clk
0:01:34.3]} 25. h3 {[%clk 0:01:28.6]} 25... b5 {[%clk 0:01:33.5]} 26. a3 {[%clk
0:01:24.7]} 26... a5 {[%clk 0:01:31.7]} 27. Nd4 {[%clk 0:01:22.2]} 27... b4
{[%clk 0:01:29.2]} 28. axb4 {[%clk 0:01:21.4]} 28... axb4 {[%clk 0:01:28.2]} 29.
Qxb4 {[%clk 0:01:20.3]} 29... Qe4 {[%clk 0:01:27.8]} 30. Qd2 {[%clk 0:01:15.1]}
30... h5 {[%clk 0:01:26.2]} 31. Qe3 {[%clk 0:01:12.7]} 31... Qd5 {[%clk
0:01:26]} 32. g3 {[%clk 0:01:08.8]} 32... Qc4 {[%clk 0:01:23]} 33. h4 {[%clk
0:01:06.4]} 33... Qd5 {[%clk 0:01:22.8]} 34. Nf3 {[%clk 0:01:02.3]} 34... Qc4
{[%clk 0:01:20.8]} 35. Kg2 {[%clk 0:01:00.7]} 35... Qd5 {[%clk 0:01:20]} 36.
Qe8+ {[%clk 0:01:00.4]} 36... Kg7 {[%clk 0:01:19.4]} 37. Qe5+ {[%clk 0:01:00.3]}
1-0